fUST/lending_fUST_20250702
["ID","MTS","AMOUNT","RATE_DAILY","PERIOD"]
[368945986,1751405444733,-151.0,0.00019458,2]
[368945988,1751405444744,-151.0,0.00019458,2]
[368945990,1751405444756,-151.0,0.00019458,2]
[368945992,1751405444768,-460.0,0.00019458,2]
[368945994,1751405444780,-460.0,0.00019458,2]
[368945997,1751405444793,-480.67,0.00019458,2]
[368945999,1751405444805,-661.76,0.00019458,2]
[368946001,1751405444817,-626.22,0.00019458,2]
[368946003,1751405444830,-460.0,0.00019458,2]
[368946005,1751405444842,-460.0,0.00019458,2]
[368946007,1751405444855,-151.0,0.00019459,2]
[368946009,1751405444868,-151.0,0.00019459,2]
[368946011,1751405444878,-151.0,0.00019459,2]
[368946013,1751405444888,-215.19023823,0.00019624,2]
[368946015,1751405444898,-379.64,0.00019722,3]
[368946017,1751405444908,-652.1,0.00019723,3]
[368946019,1751405444920,-326.04,0.00019723,3]
[368946021,1751405444934,-323.12,0.00019723,3]
[368946023,1751405444947,-497.57,0.00019731,2]
[368946025,1751405444959,-507.03,0.00019731,2]
[368946027,1751405444971,-460.0,0.00019731,2]
[368946029,1751405444981,-460.0,0.00019731,2]
[368946031,1751405444992,-460.0,0.00019731,2]
[368946033,1751405445004,-460.0,0.00019731,2]
[368946035,1751405445016,-460.0,0.00019731,2]
[368946037,1751405445029,-460.0,0.00019731,2]
[368946039,1751405445040,-570.58,0.00019731,2]
[368946041,1751405445052,-460.0,0.00019732,2]
[368946043,1751405445062,-460.0,0.00019732,2]
[368946045,1751405445072,-661.76,0.00019732,2]
[368946047,1751405445083,-626.22,0.00019732,2]
[368946049,1751405445094,-460.0,0.00019732,2]
[368946051,1751405445106,-345.99,0.00019732,2]
[368946053,1751405445117,-151.0,0.00019733,2]
[368946055,1751405445129,-151.0,0.00019733,2]
[368946057,1751405445140,-151.0,0.00019733,2]
[368946059,1751405445151,-151.0,0.00019733,2]
[368946061,1751405445161,-236.734292,0.00019763,2]
[368946063,1751405445172,-152.213498,0.00019763,2]
[368946065,1751405445183,-151.0,0.00019763,2]
[368946067,1751405445194,-151.0,0.00019763,2]
[368946069,1751405445204,-151.0,0.00019763,2]
[368946071,1751405445215,-151.0,0.00019763,2]
[368946073,1751405445226,-151.0,0.00019763,2]
[368946075,1751405445237,-151.0,0.00019763,2]
[368946077,1751405445247,-151.0,0.00019763,2]
[368946079,1751405445258,-151.0,0.00019763,2]
[368946081,1751405445270,-151.0,0.00019763,2]
[368946083,1751405445280,-215.19023823,0.00019866,2]
[368946085,1751405445291,-300.0,0.0002,2]
[368946087,1751405445302,-3153.67871931,0.00020005,2]
[368946089,1751405445313,-37371.69208953,0.00020005,2]
[368946091,1751405445323,-497.57,0.00020005,2]
[368946093,1751405445335,-507.03,0.00020005,2]
[368946095,1751405445345,-460.0,0.00020005,2]
[368946097,1751405445356,-460.0,0.00020005,2]
[368946099,1751405445367,-460.0,0.00020005,2]
[368946101,1751405445377,-460.0,0.00020005,2]
[368946103,1751405445389,-460.0,0.00020005,2]
[368946105,1751405445401,-460.0,0.00020005,2]
[368946108,1751405445412,-570.58,0.00020005,2]
[368946110,1751405445423,-460.0,0.00020006,2]
[368946112,1751405445433,-519.71,0.00020006,2]
[368946113,1751405445445,-661.76,0.00020006,2]
[368946115,1751405445456,-626.22,0.00020006,2]
[368946117,1751405445465,-460.0,0.00020006,2]
[368946119,1751405445475,-151.0,0.00020007,2]
[368946121,1751405445485,-151.0,0.00020007,2]
[368946123,1751405445494,-151.0,0.00020007,2]
[368946125,1751405445504,-151.0,0.00020007,2]
[368946127,1751405445513,-151.0,0.00020007,2]
[368946129,1751405445523,-151.0,0.00020007,2]
[368946131,1751405445533,-151.0,0.00020007,2]
[368946132,1751405445543,-151.0,0.00020007,2]
[368946134,1751405445553,-151.0,0.00020007,2]
[368946136,1751405445562,-151.0,0.00020007,2]
[368946138,1751405445572,-192.128096,0.00020007,2]
[368946140,1751405445581,-192.128096,0.00020007,2]
[368946142,1751405445591,-215.19023823,0.00020107,2]
[368946144,1751405445600,-156.56908716,0.00020181,2]
[368946146,1751405445610,-497.57,0.00020279,2]
[368946161,1751405445770,-507.03,0.00020279,2]
[368946163,1751405445781,-529.53,0.00020279,2]
[368946165,1751405445790,-460.0,0.00020279,2]
[368946167,1751405445799,-460.0,0.00020279,2]
[368946169,1751405445808,-460.0,0.00020279,2]
[368946170,1751405445818,-460.0,0.00020279,2]
[368946172,1751405445827,-460.0,0.00020279,2]
[368946174,1751405445836,-570.58,0.00020279,2]
[368946176,1751405445846,-151.0,0.0002028,2]
[368946178,1751405445855,-151.0,0.0002028,2]
[368946180,1751405445865,-151.0,0.0002028,2]
[368946182,1751405445874,-175.381672,0.0002028,2]
[368946184,1751405445883,-175.381672,0.0002028,2]
[368946185,1751405445892,-151.0,0.0002028,2]
[368946187,1751405445901,-151.0,0.0002028,2]
[368946189,1751405445911,-198.08,0.0002028,2]
[368946191,1751405445920,-151.0,0.0002028,2]
[368946193,1751405445930,-151.0,0.0002028,2]
[368946195,1751405445941,-151.0,0.0002028,2]
[368946197,1751405445950,-661.76,0.0002028,2]
[368946198,1751405445959,-626.22,0.0002028,2]
[368946200,1751405445968,-351.96,0.0002028,2]
[368946202,1751405445979,-215.19023823,0.00020348,3]
[368946204,1751405445988,-11917.82337632,0.00020453,2]
[368946206,1751405445997,-1588.19847442,0.00020519,2]
[368946208,1751405446006,-497.57,0.00020553,2]
[368946210,1751405446016,-507.03,0.00020553,2]
[368946211,1751405446025,-184.56061379,0.00020553,2]
[368946212,1751405446034,-361.32630336,0.00020553,2]
[368946213,1751405446044,-460.0,0.00020553,2]
[368946214,1751405446054,-460.0,0.00020553,2]
[368946215,1751405446064,-460.0,0.00020553,2]
[368946216,1751405446075,-570.58,0.00020553,2]
[368946217,1751405446085,-661.76,0.00020554,2]
[368946218,1751405446094,-626.22,0.00020554,2]
[368946219,1751405446104,-215.19023823,0.0002059,3]
[368946220,1751405446113,-151.0,0.00020621,2]
[368946221,1751405446123,-177.92220716,0.00020627,2]
[368946222,1751405446133,-547.201,0.00020627,2]
[368946223,1751405446143,-497.57,0.00020827,2]
[368946224,1751405446153,-507.03,0.00020827,2]
[368946225,1751405446163,-460.0,0.00020827,2]
[368946226,1751405446173,-460.0,0.00020827,2]
[368946227,1751405446183,-460.0,0.00020827,2]
[368946228,1751405446192,-570.58,0.00020827,2]
[368946229,1751405446202,-661.76,0.00020828,2]
[368946230,1751405446212,-626.22,0.00020828,2]
[368946231,1751405446222,-215.19023823,0.00020831,4]
[368946232,1751405446231,-1104.16,0.000209,2]
[368946233,1751405446241,-215.19023823,0.00021072,4]
[368946234,1751405446251,-497.57,0.00021101,2]
[368946235,1751405446261,-507.03,0.00021101,2]
[368946236,1751405446271,-460.0,0.00021101,2]
[368946237,1751405446281,-290.92,0.00021101,2]
[368946238,1751405446291,-460.0,0.00021101,2]
[368946239,1751405446301,-570.58,0.00021101,2]
[368946240,1751405446311,-661.76,0.00021102,2]
[368946241,1751405446321,-626.22,0.00021102,2]
[368946242,1751405446331,-151.0,0.00021103,2]
[368946243,1751405446341,-151.750508,0.00021103,2]
[368946244,1751405446350,-151.0,0.00021103,2]
[368946245,1751405446359,-151.0,0.00021103,2]
[368946246,1751405446369,-151.0,0.00021103,2]
[368946248,1751405446379,-151.0,0.00021103,2]
[368946249,1751405446389,-385.018486,0.00021103,2]
[368946251,1751405446399,-385.018486,0.00021103,2]
[368946252,1751405446408,-151.0,0.00021103,2]
[368946254,1751405446417,-215.19023823,0.00021314,5]
[368946255,1751405446427,-500.0,0.00021324,2]
[368946257,1751405446437,-151.0,0.00021324,2]
[368946259,1751405446447,-220.55608,0.00021324,2]
[368946261,1751405446457,-151.0,0.00021324,2]
[368946263,1751405446467,-151.0,0.00021324,2]
[368946265,1751405446477,-151.0,0.00021324,2]
[368946267,1751405446489,-151.0,0.00021324,2]
[368946269,1751405446498,-151.0,0.00021324,2]
[368946271,1751405446508,-151.0,0.00021324,2]
[368946273,1751405446517,-12843.85645655,0.0002133,2]
[368946276,1751405446531,-1509.83149464,0.0002133,2]
[368946279,1751405446555,-151.0,0.00019183,2]
[368946281,1751405446565,-1770.50470218,0.0002133,2]
[368946283,1751405446577,-1460.1979482,0.0002133,2]
[368946286,1751405446589,-3078.60939843,0.0002133,2]
[368946288,1751405446598,-151.0,0.0002133,2]
[368946290,1751405446607,-151.0,0.0002133,2]
[368946292,1751405446617,-151.0,0.0002133,2]
[368946294,1751405446627,-151.0,0.0002133,2]
[368946296,1751405446636,-151.0,0.0002133,2]
[368946298,1751405446645,-151.0,0.0002133,2]
[368946300,1751405446655,-151.0,0.0002133,2]
[368946302,1751405446664,-151.0,0.0002133,2]
[368946304,1751405446673,-151.0,0.0002133,2]
[368946306,1751405446683,-192.128096,0.0002133,2]
[368946308,1751405446692,-192.128096,0.0002133,2]
[368946310,1751405446703,-156.56908714,0.00021336,2]
[368946312,1751405446712,-497.57,0.00021375,2]
[368946314,1751405446722,-507.03,0.00021375,2]
[368946316,1751405446732,-460.0,0.00021375,2]
[368946318,1751405446742,-460.0,0.00021375,2]
[368946320,1751405446751,-570.58,0.00021375,2]
[368946322,1751405446760,-661.76,0.00021376,2]
[368946324,1751405446769,-626.22,0.00021376,2]
[368946326,1751405446780,-151.0,0.00021377,2]
[368946328,1751405446789,-151.0,0.00021377,2]
[368946330,1751405446798,-175.381672,0.00021377,2]
[368946332,1751405446808,-175.381672,0.00021377,2]
[368946334,1751405446817,-151.0,0.00021544,2]
[368946336,1751405446827,-151.0,0.00021544,2]
[368946338,1751405446836,-151.0,0.00021544,2]
[368946340,1751405446845,-151.0,0.00021544,2]
[368946342,1751405446855,-151.0,0.00021544,2]
[368946344,1751405446865,-215.19023823,0.00021555,5]
[368946346,1751405446875,-5000.0,0.00021644,2]
[368946348,1751405446885,-5000.0,0.00021644,2]
[368946350,1751405446895,-497.57,0.00021649,2]
[368946352,1751405446904,-507.03,0.00021649,2]
[368946354,1751405446914,-460.0,0.00021649,2]
[368946356,1751405446924,-460.0,0.00021649,2]
[368946358,1751405446934,-570.58,0.00021649,2]
[368946360,1751405446945,-661.76,0.0002165,2]
[368946362,1751405446956,-102.88130693,0.0002165,2]
[368946365,1751405446969,-523.33869307,0.0002165,2]
[368946367,1751405446979,-215.19023823,0.00021797,6]
[368946369,1751405446989,-207.4,0.00021798,2]
[368946371,1751405447000,-210.42063609,0.00021798,2]
[368946373,1751405447013,-1195.46,0.00021798,2]
[368946375,1751405447024,-3594.11936391,0.00021798,2]
[368946377,1751405447034,-387.0,0.00021878,2]
[368946379,1751405447043,-300.0,0.00021917,2]
[368946381,1751405447053,-497.57,0.00021923,2]
[368946384,1751405447063,-189.77712392,0.00021923,2]
[368946386,1751405447074,-317.25287608,0.00021923,2]
[368946388,1751405447083,-151.0,0.00021923,7]
[368946390,1751405447093,-213.281836,0.00021923,7]
[368946392,1751405447103,-202.38271601,0.00021923,2]
[368946394,1751405447114,-257.61728399,0.00021923,2]
[368946396,1751405447124,-13.90025418,0.00021923,7]
[368947676,1751405853355,-157.52242578,0.00017165,2]
[368947677,1751405855562,-179.94715862,0.00017165,2]
[368947679,1751406067512,167.224191,0.00013699,2]
[368947680,1751406130141,506.0,0.00024658,120]
[368947681,1751406324329,1220.90885158,0.00016264,2]
[368947682,1751406324359,20000.0,0.00016264,2]
[368947683,1751406324388,3679.09114842,0.00016264,2]
[368947684,1751406349098,-329.44717902,0.00017164,2]
[368947685,1751406349119,-660.46103429,0.00017254,2]
[368947686,1751406358264,-14.95683555,0.00017254,2]
[368947687,1751406358285,-198.0,0.00017261,2]
[368947688,1751406358306,-300.0,0.00017261,2]
[368947689,1751406358328,-300.0,0.00017261,2]
[368947690,1751406358350,-1200.0,0.00017261,2]
[368947691,1751406358371,-1200.0,0.00017262,2]
[368947692,1751406358394,-220.42795755,0.00017262,2]
[368947693,1751406358414,-500.0,0.00017262,2]
[368947694,1751406358436,-352.1382845,0.00017262,2]
[368947695,1751406435086,-288.26628159,0.00017163,2]
[368947696,1751406435109,-300.0,0.00017261,2]
[368947697,1751406435132,-147.8617155,0.00017262,2]
[368947698,1751406435157,-273.54424971,0.00017262,2]
[368947699,1751406445078,-226.45575029,0.00017262,2]
[368947700,1751406445100,-500.0,0.00017262,2]
[368947701,1751406445122,-165.0158942,0.00017262,2]
[368947702,1751406445146,-500.0,0.00017262,2]
[368947703,1751406445172,-500.0,0.00017262,2]
[368947704,1751406445201,-457.64162481,0.00017262,2]
[368947705,1751406445224,-471.11496079,0.00017262,2]
[368947706,1751406445245,-500.0,0.00017262,2]
[368947707,1751406445268,-500.0,0.00017262,2]
[368947708,1751406445290,-177.67091505,0.00017262,2]
[368947709,1751406445315,-500.0,0.00017262,2]
[368947710,1751406445339,-500.0,0.00017262,2]
[368947711,1751406445361,-500.0,0.00017262,2]
[368947712,1751406445386,-500.0,0.00017262,2]
[368947713,1751406445408,-500.0,0.00017262,2]
[368947714,1751406445430,-500.0,0.00017262,2]
[368947715,1751406445455,-500.0,0.00017262,2]
[368947716,1751406445481,-500.0,0.00017262,2]
[368947717,1751406445504,-130.75083003,0.00017262,2]
[368947718,1751406525419,157.5224258,0.00016374,2]
[368947719,1751406582199,-235.85250265,0.00017261,2]
[368947751,1751406632332,-252.2329964,0.00017163,2]
[368947752,1751406632342,-300.0,0.00017261,2]
[368947755,1751406632353,-369.24916997,0.00017262,2]
[368947757,1751406632362,-137.31783363,0.00017262,2]
[368947759,1751406632374,-362.68216637,0.00017262,2]
[368947761,1751406632383,-495.30661819,0.00017262,2]
[368947763,1751406632392,-500.0,0.00017262,2]
[368947765,1751406632402,-460.0,0.00017262,2]
[368947767,1751406632411,-460.0,0.00017262,2]
[368947769,1751406632421,-460.0,0.00017262,2]
[368947771,1751406632431,-460.0,0.00017262,2]
[368947776,1751406632609,-460.0,0.00017262,2]
[368947777,1751406632621,-460.0,0.00017262,2]
[368947778,1751406632631,-460.0,0.00017262,2]
[368947779,1751406632640,-460.0,0.00017262,2]
[368947780,1751406632650,-460.0,0.00017262,2]
[368947781,1751406632659,-136.0420343,0.00017262,2]
[368947782,1751406632672,-323.9579657,0.00017262,2]
[368947783,1751406632682,-357.84007083,0.00017262,2]
[368947784,1751406632693,-147.45999492,0.00017262,2]
[368947799,1751406638358,-312.54000508,0.00017262,2]
[368947800,1751406638369,-460.0,0.00017262,2]
[368947801,1751406638378,-460.0,0.00017262,2]
[368947802,1751406638389,-541.6013228,0.00017262,2]
[368947803,1751406638399,-460.0,0.00017262,2]
[368947805,1751406638408,-460.0,0.00017262,2]
[368947806,1751406638417,-460.0,0.00017262,2]
[368947807,1751406638427,-460.0,0.00017262,2]
[368947808,1751406638437,-389.56501717,0.00017263,2]
[368947809,1751406638447,-460.0,0.00017263,2]
[368947810,1751406638456,-460.0,0.00017263,2]
[368947811,1751406638465,-460.0,0.00017263,2]
[368947812,1751406638475,-460.0,0.00017263,2]
[368947813,1751406638485,-460.0,0.00017263,2]
[368947814,1751406638494,-460.0,0.00017263,2]
[368947815,1751406638504,-460.0,0.00017263,2]
[368947816,1751406638513,-460.0,0.00017263,2]
[368947817,1751406638523,-460.0,0.00017263,2]
[368947818,1751406638532,-460.0,0.00017263,2]
[368947819,1751406638541,-460.0,0.00017263,2]
[368947820,1751406638551,-460.0,0.00017263,2]
[368947821,1751406638560,-460.0,0.00017263,2]
[368947822,1751406638569,-460.0,0.00017263,2]
[368947823,1751406638580,-460.0,0.00017263,2]
[368947824,1751406638589,-460.0,0.00017263,2]
[368947825,1751406638599,-460.0,0.00017263,2]
[368947826,1751406638609,-486.7766044,0.00017263,2]
[368947827,1751406638620,-460.0,0.00017263,2]
[368947828,1751406638631,-460.0,0.00017263,2]
[368947829,1751406638642,-460.0,0.00017263,2]
[368947830,1751406638652,-460.0,0.00017263,2]
[368947831,1751406638665,-460.0,0.00017263,2]
[368947832,1751406638674,-460.0,0.00017263,2]
[368947833,1751406638684,-460.0,0.00017263,2]
[368947834,1751406638695,-514.92,0.00017263,2]
[368947835,1751406638704,-460.0,0.00017263,2]
[368947836,1751406638714,-460.0,0.00017263,2]
[368947837,1751406638723,-460.0,0.00017263,2]
[368947838,1751406638733,-460.0,0.00017263,2]
[368947839,1751406638742,-460.0,0.00017263,2]
[368947840,1751406638752,-460.0,0.00017263,2]
[368947841,1751406638763,-460.0,0.00017263,2]
[368947842,1751406638772,-460.0,0.00017263,2]
[368947843,1751406638782,-460.0,0.00017263,2]
[368947844,1751406638792,-204.26126514,0.00017263,2]
[368947845,1751406638802,-460.0,0.00017263,2]
[368947846,1751406638812,-460.0,0.00017263,2]
[368947847,1751406638822,-460.0,0.00017263,2]
[368947848,1751406638833,-460.0,0.00017263,2]
[368947849,1751406638843,-460.0,0.00017263,2]
[368947850,1751406638852,-460.0,0.00017263,2]
[368947851,1751406638864,-460.0,0.00017263,2]
[368947852,1751406638873,-460.0,0.00017263,2]
[368947853,1751406638884,-460.0,0.00017263,2]
[368947854,1751406638894,-460.0,0.00017263,2]
[368947855,1751406638905,-460.0,0.00017263,2]
[368947856,1751406638915,-460.0,0.00017263,2]
[368947857,1751406638925,-460.0,0.00017263,2]
[368947858,1751406638935,-460.0,0.00017263,2]
[368947859,1751406638945,-500.0,0.00017263,2]
[368947860,1751406638955,-460.0,0.00017263,2]
[368947861,1751406638967,-460.0,0.00017263,2]
[368947862,1751406638977,-460.0,0.00017263,2]
[368947863,1751406638986,-460.0,0.00017263,2]
[368947864,1751406638996,-460.0,0.00017263,2]
[368947865,1751406639006,-460.0,0.00017263,2]
[368947866,1751406639019,-460.0,0.00017263,2]
[368947867,1751406639028,-460.0,0.00017263,2]
[368947868,1751406639038,-460.0,0.00017263,2]
[368947869,1751406639047,-460.0,0.00017263,2]
[368947870,1751406639056,-460.0,0.00017263,2]
[368947871,1751406639067,-460.0,0.00017263,2]
[368947872,1751406639076,-460.0,0.00017263,2]
[368947873,1751406639086,-460.83668196,0.00017263,2]
[368947874,1751406639096,-460.0,0.00017263,2]
[368947875,1751406639107,-460.0,0.00017263,2]
[368947876,1751406639117,-460.0,0.00017263,2]
[368947877,1751406639127,-460.0,0.00017263,2]
[368947878,1751406639137,-460.0,0.00017263,2]
[368947879,1751406639148,-460.0,0.00017263,2]
[368947880,1751406639158,-460.0,0.00017264,2]
[368947881,1751406639167,-460.0,0.00017264,2]
[368947882,1751406639178,-460.0,0.00017264,2]
[368947883,1751406639188,-460.0,0.00017264,2]
[368947884,1751406639197,-460.0,0.00017264,2]
[368947885,1751406639206,-460.0,0.00017264,2]
[368947886,1751406639216,-460.0,0.00017264,2]
[368947887,1751406639225,-397.92,0.00017264,2]
[368947888,1751406639234,-460.0,0.00017264,2]
[368947889,1751406639244,-460.0,0.00017264,2]
[368947890,1751406639253,-460.0,0.00017264,2]
[368947891,1751406639263,-460.0,0.00017264,2]
[368947892,1751406639272,-460.0,0.00017264,2]
[368947893,1751406639282,-493.03,0.00017264,2]
[368947894,1751406639291,-460.0,0.00017264,2]
[368947895,1751406639300,-460.0,0.00017265,2]
[368947896,1751406639309,-460.0,0.00017265,2]
[368947897,1751406639319,-460.0,0.00017265,2]
[368947898,1751406639328,-460.0,0.00017265,2]
[368947899,1751406639337,-460.0,0.00017265,2]
[368947900,1751406639346,-460.0,0.00017265,2]
[368947901,1751406639355,-460.0,0.00017265,2]
[368947902,1751406639364,-460.0,0.00017265,2]
[368947903,1751406639373,-460.0,0.00017265,2]
[368947904,1751406639383,-460.0,0.00017265,2]
[368947905,1751406639392,-460.0,0.00017265,2]
[368947906,1751406639402,-460.0,0.00017265,2]
[368947907,1751406639411,-460.0,0.00017265,2]
[368947908,1751406639420,-460.0,0.00017265,2]
[368947909,1751406639430,-375.38774764,0.00017266,2]
[368947910,1751406639440,-388.80123419,0.00017535,2]
[368947911,1751406639449,-460.0,0.00017536,2]
[368947912,1751406639458,-460.0,0.00017536,2]
[368947913,1751406639468,-460.0,0.00017536,2]
[368947914,1751406639477,-460.0,0.00017536,2]
[368947915,1751406639486,-460.0,0.00017536,2]
[368947916,1751406639495,-460.0,0.00017536,2]
[368947917,1751406639505,-516.72,0.00017536,2]
[368947918,1751406639514,-460.0,0.00017536,2]
[368947919,1751406639524,-460.0,0.00017536,2]
[368947920,1751406639533,-460.0,0.00017536,2]
[368947921,1751406639542,-261.90902114,0.00017537,2]
[368947922,1751406639551,-532.78,0.00017537,2]
[368947923,1751406639561,-460.0,0.00017537,2]
[368947924,1751406639571,-460.0,0.00017537,2]
[368947925,1751406639581,-460.0,0.00017537,2]
[368947926,1751406639591,-460.0,0.00017537,2]
[368947927,1751406639600,-460.0,0.00017537,2]
[368947928,1751406639609,-545.51,0.00017537,2]
[368947929,1751406639619,-460.0,0.00017537,2]
[368947930,1751406639628,-460.0,0.00017537,2]
[368947931,1751406639638,-564.64,0.00017537,2]
[368947932,1751406639648,-469.54,0.00017537,2]
[368947933,1751406639658,-460.0,0.00017537,2]
[368947934,1751406639667,-509.06,0.00017537,2]
[368947935,1751406639676,-460.0,0.00017537,2]
[368947936,1751406639687,-460.0,0.00017537,2]
[368947937,1751406639696,-460.0,0.00017537,2]
[368947938,1751406639706,-460.0,0.00017537,2]
[368947939,1751406639716,-460.0,0.00017537,2]
[368947940,1751406639725,-544.96,0.00017537,2]
[368947941,1751406639735,-460.0,0.00017537,2]
[368947942,1751406639744,-460.0,0.00017537,2]
[368947943,1751406639754,-460.0,0.00017537,2]
[368947944,1751406639764,-460.0,0.00017537,2]
[368947945,1751406639774,-415.23373348,0.00017537,2]
[368947946,1751406639783,-511.96,0.00017537,2]
[368947947,1751406639793,-460.0,0.00017538,2]
[368947948,1751406639802,-390.11,0.00017538,2]
[368947949,1751406639812,-165.24,0.00017538,2]
[368947950,1751406639822,-460.0,0.00017538,2]
[368947951,1751406639832,-460.0,0.00017538,2]
[368947952,1751406639841,-493.03,0.00017538,2]
[368947953,1751406639851,-460.0,0.00017538,2]
[368947954,1751406639861,-460.0,0.0001781,2]
[368947955,1751406639870,-448.24,0.0001781,2]
[368947956,1751406639879,-460.0,0.0001781,2]
[368947957,1751406639889,-460.0,0.0001781,2]
[368947958,1751406639900,-460.0,0.0001781,2]
[368947959,1751406639910,-460.0,0.0001781,2]
[368947960,1751406639920,-460.0,0.00017811,2]
[368947961,1751406639929,-460.0,0.00017811,2]
[368947962,1751406639939,-460.0,0.00017811,2]
[368947963,1751406639949,-460.0,0.00017811,2]
[368947964,1751406639958,-371.48,0.00017811,2]
[368947965,1751406639968,-460.0,0.00017811,2]
[368947966,1751406639978,-388.54,0.00017811,2]
[368947967,1751406639988,-291.1,0.00017811,2]
[368947968,1751406639998,-597.54,0.00017811,2]
[368947969,1751406640007,-460.0,0.00017811,2]
[368947970,1751406640021,-184.46,0.00017811,2]
[368947971,1751406640031,-460.0,0.00017811,2]
[368947972,1751406640040,-460.0,0.00017811,2]
[368947973,1751406640050,-460.0,0.00017812,2]
[368947974,1751406640060,-460.0,0.00017812,2]
[368947976,1751406640069,-493.03,0.00017812,2]
[368947977,1751406640079,-460.0,0.00017812,2]
[368947978,1751406640088,-492.30418994,0.00017975,2]
[368947979,1751406640098,-2412.45621276,0.00018,2]
[368947981,1751406640107,-186.06798606,0.00018017,2]
[368947983,1751406640117,-460.0,0.00018084,2]
[368947985,1751406640126,-460.0,0.00018084,2]
[368947986,1751406640137,-460.0,0.00018084,2]
[368947987,1751406640146,-460.0,0.00018084,2]
[368947988,1751406640156,-460.0,0.00018084,2]
[368947989,1751406640166,-460.0,0.00018085,2]
[368947990,1751406640175,-460.0,0.00018085,2]
[368947991,1751406640185,-460.0,0.00018085,2]
[368947992,1751406640195,-460.0,0.00018085,2]
[368947993,1751406640204,-460.0,0.00018085,2]
[368947994,1751406640214,-230.2,0.00018085,2]
[368947995,1751406640224,-460.0,0.00018085,2]
[368947996,1751406640233,-184.9,0.00018086,2]
[368947997,1751406640243,-460.0,0.00018086,2]
[368947998,1751406640252,-493.03,0.00018086,2]
[368947999,1751406640262,-460.0,0.00018086,2]
[368948000,1751406640272,-252.23299638,0.00018289,2]
[368948001,1751406640281,-460.0,0.00018358,2]
[368948003,1751406640291,-460.0,0.00018358,2]
[368948005,1751406640300,-460.0,0.00018358,2]
[368948006,1751406640310,-460.0,0.00018358,2]
[368948007,1751406640320,-460.0,0.00018358,2]
[368948008,1751406640329,-460.0,0.00018359,2]
[368948009,1751406640339,-460.0,0.00018359,2]
[368948011,1751406640348,-561.77,0.00018359,2]
[368948013,1751406640358,-460.0,0.00018359,2]
[368948015,1751406640368,-187.04,0.00018359,2]
[368948017,1751406640378,-152.5,0.00018359,2]
[368948019,1751406640387,-307.53,0.0001836,2]
[368948021,1751406640398,-493.03,0.0001836,2]
[368948023,1751406640408,-460.0,0.0001836,2]
[368948025,1751406640417,-215.01728679,0.00018425,2]
[368948027,1751406640427,-230.32585361,0.00018425,2]
[368948029,1751406640436,-160.0,0.00018425,2]
[368948031,1751406640446,-837.20943635,0.00018425,2]
[368948033,1751406640455,-603.34,0.00018632,2]
[368948035,1751406640464,-460.0,0.00018632,2]
[368948037,1751406640473,-460.0,0.00018632,2]
[368948039,1751406640482,-460.0,0.00018632,2]